bitfinex/quotes_ETHUSD_20250504
["timestamp","ask_amount","ask_price","bid_price","bid_amount"]
[1746356738612,5.75467078,1834.4,1834.2,0.83790924]
[1746356738777,5.75467078,1834.4,1834.2,0.7834]
[1746356739511,5.45171255,1834.3,1834.1,0.68593752]
[1746356739712,5.45171255,1834.3,1834.0,0.8235]
[1746356740004,0.30163145,1834.2,1834.0,0.8235]
[1746356740755,0.30163145,1834.2,1834.0,6.27595187]
[1746356740922,0.30163145,1834.2,1834.1,0.05451399]
[1746356741123,15.61461679,1834.5,1834.1,0.05451399]
[1746356741530,5.75377127,1834.4,1834.1,0.05451399]
[1746356742252,0.30237351,1834.4,1834.1,6.08518309]
[1746356742981,0.30237351,1834.4,1834.2,0.8235]
[1746356743606,0.30237351,1834.4,1834.2,15.3235]
[1746356744447,0.30237351,1834.4,1834.3,0.05450921]
[1746356744620,0.30237351,1834.4,1834.2,20.77543568]
[1746356744814,0.30237351,1834.4,1834.3,2.07754357]
[1746356745842,0.30237351,1834.4,1834.3,2.86854357]
[1746356746445,5.4506641,1834.7,1834.3,13.7716838]
[1746356746647,0.30516514,1834.6,1834.3,2.86854357]
[1746356746848,0.30516514,1834.6,1834.3,0.791]
[1746356747015,5.45054141,1834.7,1834.4,14.5]
[1746356747217,0.30593164,1834.6,1834.5,0.05450299]
[1746356747416,10.06030485,1834.8,1834.4,19.95133105]
[1746356747737,0.30630246,1834.7,1834.4,19.95133105]
[1746356747941,0.30630246,1834.7,1834.5,1.99513311]
[1746356748663,0.30630246,1834.7,1834.6,0.8049]
[1746356749025,0.30630246,1834.7,1834.6,0.85940015]
[1746356749447,0.30630246,1834.7,1834.6,6.25567946]
[1746356749617,0.30630246,1834.7,1834.6,0.8049]
[1746356749951,0.30630246,1834.7,1834.6,1.62999473]
[1746356750448,0.30630246,1834.7,1834.6,0.8049]
[1746356751258,0.30630246,1834.7,1834.6,15.3049]
[1746356751562,5.44990832,1834.9,1834.6,15.3049]
[1746356751713,0.30531905,1834.7,1834.6,15.3049]
[1746356752241,5.44990832,1834.9,1834.6,15.3049]
[1746356752439,0.3056899,1834.8,1834.7,1.53049]
[1746356752641,5.44990832,1834.9,1834.7,1.53049]
[1746356752830,0.3056899,1834.8,1834.7,1.53049]
[1746356753033,5.44990832,1834.9,1834.7,1.53049]
[1746356753351,0.30540563,1834.8,1834.7,1.53049]
[1746356753723,5.44990832,1834.9,1834.7,1.53049]
[1746356753924,0.30540563,1834.8,1834.7,1.53049]
[1746356754253,5.44990832,1834.9,1834.7,1.53049]
[1746356754550,0.30540563,1834.8,1834.7,14.5]
[1746356754925,5.44990832,1834.9,1834.7,14.5]
[1746356755140,0.30540563,1834.8,1834.7,14.5]
[1746356755455,5.44990832,1834.9,1834.7,14.5]
[1746356755665,0.30540563,1834.8,1834.7,14.5]
[1746356755867,5.44994134,1834.9,1834.7,16.03049]
[1746356756030,0.30595127,1834.8,1834.7,16.03049]
[1746356756229,5.44994134,1834.9,1834.7,16.03049]
[1746356756434,0.30595127,1834.8,1834.7,16.03049]
[1746356756634,5.44994134,1834.9,1834.7,16.03049]
[1746356756857,0.30595127,1834.8,1834.7,16.03049]
[1746356757175,5.44971014,1835.0,1834.7,16.03049]
[1746356757380,0.30595127,1834.8,1834.7,16.03049]
[1746356757566,5.45003027,1834.9,1834.7,16.03049]
[1746356757764,0.30595127,1834.8,1834.7,16.03049]
[1746356758138,5.45003027,1834.9,1834.7,16.03049]
[1746356758337,0.30595127,1834.8,1834.7,16.03049]
[1746356758776,5.45003027,1834.9,1834.7,16.03049]
[1746356758984,0.30759327,1834.8,1834.7,16.03049]
[1746356759301,5.45003027,1834.9,1834.7,16.03049]
[1746356759476,0.30759327,1834.8,1834.7,16.03049]
[1746356759676,5.45003027,1834.9,1834.7,16.03049]
[1746356759875,0.30759327,1834.8,1834.7,16.03049]
[1746356760054,5.45003027,1834.9,1834.7,16.03049]
[1746356760375,5.75777857,1834.8,1834.7,14.5]
[1746356760782,5.75777857,1834.8,1834.4,4.4788273]
[1746356760783,11.2082432,1834.8,1834.4,4.4788273]
[1746356761094,11.20821762,1834.8,1834.4,9.93020089]
[1746356761379,11.20821762,1834.8,1834.5,14.5]
[1746356761380,5.75777857,1834.8,1834.5,14.5]
[1746356761940,5.75777857,1834.8,1834.6,0.05450136]
[1746356762154,5.75777857,1834.8,1834.5,14.5]
[1746356762356,5.45056935,1834.7,1834.5,16.94301708]
[1746356762779,0.30678024,1834.6,1834.5,16.94301708]
[1746356763078,5.45056935,1834.7,1834.5,16.94301708]
[1746356763392,5.7575597,1834.6,1834.5,14.5]
[1746356763883,0.30678024,1834.6,1834.5,14.5]
[1746356764074,5.45056935,1834.7,1834.5,14.5]
[1746356764253,0.30678024,1834.6,1834.5,14.5]
[1746356764446,5.4501853,1834.8,1834.5,14.5]
[1746356764783,5.45077946,1834.6,1834.5,14.5]
[1746356765301,5.7575597,1834.6,1834.5,14.5]
[1746356765659,0.30678024,1834.6,1834.5,14.5]
[1746356765860,10.03366468,1834.7,1834.5,14.5]
[1746356766191,10.03366468,1834.7,1834.5,15.95]
[1746356766402,0.30678024,1834.6,1834.5,15.95]
[1746356766695,10.03366468,1834.7,1834.5,15.95]
[1746356766999,0.30678024,1834.6,1834.5,14.5]
[1746356767671,10.03366468,1834.7,1834.5,14.5]
[1746356767876,5.7575597,1834.6,1834.5,14.5]
[1746356768099,5.8575597,1834.6,1834.3,3.6889273]
[1746356768273,5.45111122,1834.5,1834.3,4.43647003]
[1746356768475,0.30603831,1834.4,1834.3,0.74754273]
[1746356769175,5.55095345,1834.6,1834.3,15.24754273]
[1746356769368,0.30603831,1834.4,1834.3,15.24754273]
[1746356769598,5.55095345,1834.6,1834.3,15.24754273]
[1746356769775,0.30603831,1834.4,1834.3,15.24754273]
[1746356769979,5.45112818,1834.5,1834.3,15.24754273]
[1746356770188,0.30603831,1834.4,1834.3,15.24754273]
[1746356770595,5.4511337,1834.5,1834.3,15.24754273]
[1746356770803,0.30603831,1834.4,1834.3,15.24754273]
[1746356771303,5.55097671,1834.6,1834.3,15.24754273]
[1746356771469,0.30603831,1834.4,1834.3,15.24754273]
[1746356772494,5.75741205,1834.4,1834.1,4.32196505]
[1746356772909,5.75762665,1834.4,1834.1,4.32196505]
[1746356773112,5.75762665,1834.4,1834.2,0.05451188]
[1746356773316,5.75762665,1834.4,1834.2,14.55451188]
[1746356773516,5.75762665,1834.4,1834.2,14.5]
[1746356774516,5.75762665,1834.4,1834.2,15.24055284]
[1746356774901,0.30603831,1834.4,1834.3,0.05451394]
[1746356775420,0.30603831,1834.4,1834.2,15.24055284]
[1746356775786,0.30603831,1834.4,1834.3,0.0545101]
[1746356776187,0.30603831,1834.4,1834.2,15.24055284]
[1746356776390,0.1,1834.3,1834.2,15.24055284]
[1746356776623,5.55167093,1834.3,1834.2,14.5]
[1746356776821,0.1,1834.3,1833.9,4.5035273]
[1746356777030,5.45227556,1834.1,1834.0,0.05451946]
[1746356777231,5.45238411,1834.1,1834.0,14.5]
[1746356777432,0.30291817,1834.1,1834.0,16.32434481]
[1746356777922,5.75518358,1834.1,1834.0,16.32434481]
[1746356778157,5.75518358,1834.1,1834.0,20.01327211]
[1746356779346,0.30291817,1834.1,1834.0,20.01327211]
[1746356781066,5.75518358,1834.1,1834.0,20.01327211]
[1746356781226,5.75518358,1834.1,1834.0,3.6889273]
[1746356781428,5.75518358,1834.1,1833.8,7.5035273]
[1746356781823,5.75518358,1834.1,1833.9,14.55452162]
[1746356782023,5.75518358,1834.1,1833.9,14.5]
[1746356782835,5.4525627,1834.0,1833.9,16.70035273]
[1746356783042,5.75416067,1834.0,1833.9,16.70035273]
[1746356783324,0.30159797,1834.0,1833.9,16.70035273]
[1746356785824,5.75416067,1834.0,1833.9,16.70035273]
[1746356786029,0.30159797,1834.0,1833.9,16.70035273]
[1746356787260,5.75416067,1834.0,1833.9,16.70035273]
[1746356788264,5.45315737,1833.8,1833.7,3.6889273]
[1746356788461,5.75233384,1833.8,1833.7,3.6889273]
[1746356788853,5.75233384,1833.8,1833.7,18.1889273]
[1746356789655,5.75233384,1833.8,1833.7,14.5]
[1746356790664,5.45345476,1833.7,1833.6,3.6889273]
[1746356790868,0.29825826,1833.7,1833.6,3.6889273]
[1746356791064,0.29825826,1833.7,1833.6,18.1889273]
[1746356791383,5.75171302,1833.7,1833.6,18.1889273]
[1746356791577,0.29825826,1833.7,1833.6,18.1889273]
[1746356792233,0.29825826,1833.7,1833.6,26.28107221]
[1746356792434,4.569,1833.9,1833.6,26.28107221]
[1746356792763,0.29827303,1833.8,1833.7,0.05452846]
[1746356792936,0.29827303,1833.8,1833.7,9.32748322]
[1746356793133,4.569,1833.9,1833.8,5.45315737]
[1746356793342,5.45239951,1834.1,1833.8,1.47806406]
[1746356794573,5.45239951,1834.1,1833.9,0.05452196]
[1746356794774,5.45239951,1834.1,1833.8,1.47806406]
[1746356795351,5.45258096,1834.0,1833.7,3.8195]
[1746356795676,5.45244605,1834.1,1833.7,9.27295225]
[1746356795993,5.45244605,1834.1,1833.7,3.8195]
[1746356796280,0.1,1834.1,1833.8,0.05452198]
[1746356796587,5.45261328,1834.0,1833.8,0.05452198]
[1746356796908,5.55245253,1834.1,1833.8,0.44192418]
[1746356799084,5.55245253,1834.1,1833.9,14.5]
[1746356799390,5.45227093,1834.1,1833.9,14.5]
[1746356799888,10.02113944,1834.2,1833.9,14.5]
[1746356801062,5.45230868,1834.1,1833.9,14.5]
[1746356801264,5.45230868,1834.1,1833.9,15.98874022]
[1746356801614,10.02113944,1834.2,1833.9,15.98874022]
[1746356801813,15.47335519,1834.2,1833.9,15.98874022]
[1746356802110,10.02113944,1834.2,1833.9,15.98874022]
[1746356802409,10.02113944,1834.2,1834.0,0.05451903]
[1746356802782,10.02113944,1834.2,1833.8,5.8404324]
[1746356802984,10.02113944,1834.2,1833.9,15.08404324]
[1746356803223,4.569,1834.2,1834.0,0.7636]
[1746356803822,4.569,1834.2,1834.0,0.81811904]
[1746356804375,10.02096816,1834.2,1834.1,14.5]
[1746356806530,10.32019729,1834.2,1834.1,14.5]
[1746356808091,5.45267843,1834.0,1833.7,7.4445273]
[1746356808411,0.29790184,1833.9,1833.7,7.4445273]
[1746356808573,0.29790184,1833.9,1833.8,15.24445273]
[1746356812710,0.29790184,1833.9,1833.7,3.7556]
[1746356812897,0.29790184,1833.9,1833.7,3.81012699]
[1746356813098,0.29790184,1833.9,1833.7,9.26357096]
[1746356813310,5.45227141,1834.1,1833.7,23.76357096]
[1746356813616,0.29889386,1834.0,1833.7,23.70904397]
[1746356813920,0.29889386,1834.0,1833.7,26.99419332]
[1746356814725,5.75147338,1834.0,1833.7,21.54074935]
[1746356815499,5.75165097,1834.0,1833.7,18.2556]
[1746356815729,5.45315737,1833.8,1833.7,14.5]
[1746356815942,5.75066703,1833.8,1833.6,3.6889273]
[1746356816250,0.29750966,1833.8,1833.6,3.74345846]
[1746356816567,10.00827134,1833.8,1833.6,18.1889273]
[1746356816866,0.29710184,1833.7,1833.6,14.5]
[1746356817672,10.00827134,1833.8,1833.6,14.5]
[1746356817856,0.29710184,1833.7,1833.6,14.5]
[1746356818056,10.00827134,1833.8,1833.6,14.5]
[1746356818351,0.29710184,1833.7,1833.6,14.5]
[1746356818668,10.00827134,1833.8,1833.6,14.5]
[1746356818873,0.29710184,1833.7,1833.6,14.5]
[1746356819026,10.00827134,1833.8,1833.6,14.5]
[1746356819365,0.29710184,1833.7,1833.6,14.5]
[1746356819669,10.00827134,1833.8,1833.6,14.5]
[1746356819970,0.29710184,1833.7,1833.6,14.5]
[1746356820339,4.555,1833.8,1833.6,22.75374887]
[1746356820578,0.29710184,1833.7,1833.6,17.29999669]
[1746356821979,0.29710184,1833.7,1833.6,14.5]
[1746356824292,0.29710184,1833.7,1833.6,26.53728738]
[1746356824460,0.29710184,1833.7,1833.6,27.35778738]
[1746356824886,4.555,1833.8,1833.6,27.35778738]
[1746356825051,0.27234335,1833.7,1833.6,27.35778738]
[1746356825253,0.27234335,1833.7,1833.6,30.63896947]
[1746356827793,0.27234335,1833.7,1833.6,25.18521729]
[1746356828493,0.27234335,1833.7,1833.6,24.36471729]
[1746356828794,5.72579811,1833.7,1833.6,21.0835352]
[1746356828962,5.72579811,1833.7,1833.6,6.5835352]
[1746356829293,0.27234335,1833.7,1833.6,6.5835352]
[1746356829494,0.27234335,1833.7,1833.6,21.0835352]
[1746356832317,0.27234335,1833.7,1833.6,6.5835352]
[1746356833608,0.27234335,1833.7,1833.6,7.2473421]
[1746356833813,0.27234335,1833.7,1833.6,13.45809428]
[1746356834562,0.27234335,1833.7,1833.6,6.87455908]
[1746356834685,0.27234335,1833.7,1833.6,6.92908382]
[1746356834886,4.556,1834.1,1833.9,0.7632]
[1746356835189,0.26343267,1834.0,1833.9,1.43934502]
[1746356838136,0.26343267,1834.0,1833.9,1.43934421]
[1746356838722,0.26343267,1834.0,1833.9,1.38482229]
[1746356839733,0.26343267,1834.0,1833.9,1.43934422]
[1746356841024,0.26343267,1834.0,1833.9,1.38482229]
[1746356841825,0.26343267,1834.0,1833.9,1.43934423]
[1746356845846,0.26343267,1834.0,1833.9,8.0242616]
[1746356850544,0.26343267,1834.0,1833.9,1.43934423]
[1746356855253,0.26343267,1834.0,1833.9,6.89220425]
[1746356856345,4.539,1834.4,1834.0,5.45232044]
[1746356856640,0.26702311,1834.3,1834.1,6.29747219]
[1746356857001,4.539,1834.4,1834.1,6.29747219]
[1746356857205,0.26665209,1834.2,1834.1,6.29747219]
[1746356857443,4.539,1834.4,1834.1,6.29747219]
[1746356857643,0.26665209,1834.2,1834.1,6.29747219]
[1746356857848,4.539,1834.4,1834.1,6.29747219]
[1746356857849,29.76559031,1834.7,1834.2,6.24249848]
[1746356858015,29.76559031,1834.7,1834.3,5.50617154]
[1746356858542,35.21632343,1834.7,1834.3,5.50617154]
[1746356858853,5.45082836,1834.6,1834.2,6.24256198]
[1746356859662,29.76559031,1834.7,1834.2,6.24256198]
[1746356859845,29.76559031,1834.7,1834.3,0.67876393]
[1746356860140,5.45080055,1834.6,1834.3,0.67876393]
[1746356860346,5.45080055,1834.6,1834.3,0.6242562]
[1746356860905,4.538,1835.2,1834.7,0.7907]
[1746356861361,9.98713141,1835.2,1834.8,5.50467231]
[1746356861527,4.538,1835.2,1834.9,6.24050218]
[1746356861713,4.538,1835.2,1835.0,0.05449554]
[1746356862616,4.538,1835.2,1834.9,6.24039752]
[1746356863762,4.538,1835.2,1835.0,14.5]
[1746356866648,5.69861471,1835.1,1835.0,14.5]
[1746356866957,5.69861471,1835.1,1834.8,1.17456113]
[1746356867347,5.69861471,1835.1,1834.9,14.5]
[1746356868436,0.3493204,1835.1,1834.9,14.5]
[1746356868638,5.79873103,1835.1,1834.9,14.5]
[1746356869673,5.79873103,1835.1,1834.9,16.06745611]
[1746356870783,0.2493204,1835.1,1834.9,16.06745611]
[1746356872212,5.69875576,1835.1,1834.9,16.06745611]
[1746356872488,5.69875576,1835.1,1834.9,14.5]
[1746356874155,0.2493204,1835.1,1835.0,0.8183]
[1746356875249,0.2493204,1835.1,1834.9,14.5]
[1746356877014,0.2493204,1835.1,1835.0,0.05449399]
[1746356877311,0.2493204,1835.1,1835.0,2.05490997]
[1746356877607,0.2493204,1835.1,1835.0,14.55449399]
[1746356877903,0.2493204,1835.1,1835.0,14.5]
[1746356880316,0.2493204,1835.1,1835.0,19.94959128]
[1746356880475,0.2493204,1835.1,1835.0,14.5]
[1746356883307,5.69861471,1835.1,1835.0,14.5]
[1746356884184,5.69861471,1835.1,1834.8,1.17456113]
[1746356884489,0.2493204,1835.1,1834.8,1.17456113]
[1746356884695,0.2493204,1835.1,1834.9,14.5]
[1746356886331,0.2493204,1835.1,1834.9,19.9498495]
[1746356887247,0.2493204,1835.1,1834.9,14.5]
[1746356889539,0.2493204,1835.1,1834.9,19.94988456]
[1746356889742,0.2493204,1835.1,1835.0,0.83839329]
[1746356889949,0.2493204,1835.1,1835.0,7.8218239]
[1746356890243,0.2493204,1835.1,1835.0,6.28798457]
[1746356890545,0.2493204,1835.1,1835.0,20.78798457]
[1746356890840,0.2493204,1835.1,1835.0,20.73349128]
[1746356891093,0.2493204,1835.1,1835.0,14.5]
[1746356894056,0.2493204,1835.1,1834.7,4.2036125]
[1746356894259,5.69879179,1835.1,1834.7,7.19969303]
[1746356894607,5.69879179,1835.1,1834.8,14.5]
[1746356895021,0.2493204,1835.1,1834.8,19.95014547]
[1746356896163,0.2493204,1835.1,1834.9,11.70903309]
[1746356896337,0.2493204,1835.1,1834.9,6.25924901]
[1746356896665,0.2493204,1835.1,1835.0,0.6259249]
[1746356896824,0.2493204,1835.1,1835.0,15.1259249]
[1746356897156,0.2493204,1835.1,1835.0,20.57551618]
[1746356900165,0.2493204,1835.1,1835.0,21.38511618]
[1746356901166,0.24966278,1835.1,1835.0,15.9355249]
[1746356901469,5.86195165,1835.3,1835.0,15.1259249]
[1746356901470,5.96195165,1835.3,1835.0,15.1259249]
[1746356901626,0.24966278,1835.1,1835.0,14.5]
[1746356901827,5.96195165,1835.3,1835.0,14.5]
[1746356902043,0.24966278,1835.1,1835.0,14.5]
[1746356902541,5.96201391,1835.3,1835.0,14.5]
[1746356902770,0.25003343,1835.2,1835.0,14.5]
[1746356902950,0.25003343,1835.2,1835.0,16.49498522]
[1746356904268,0.25003343,1835.2,1835.0,21.94457069]
[1746356905969,0.25003343,1835.2,1835.0,16.49498522]
[1746356907571,0.25003343,1835.2,1835.0,14.5]
[1746356907769,5.69917708,1835.2,1835.0,14.5]
[1746356908364,0.25003343,1835.2,1835.0,14.5]
[1746356908529,0.25003343,1835.2,1834.9,5.44959708]
[1746356908727,0.25003343,1835.2,1834.9,5.50409031]
[1746356908968,0.25003343,1835.2,1835.0,0.55040903]
[1746356909272,0.25003343,1835.2,1835.0,5.99996802]
[1746356909865,0.25003343,1835.2,1835.1,14.5]
[1746356910648,0.25003343,1835.2,1835.1,0.7911]
[1746356911667,0.25003343,1835.2,1835.0,24.16264461]
[1746356915573,0.25003343,1835.2,1835.1,8.62165877]
[1746356915868,0.25003343,1835.2,1835.1,8.67614975]
[1746356916100,0.25003343,1835.2,1835.1,8.62165877]
[1746356916374,0.25003343,1835.2,1835.1,20.70539431]
[1746356919146,0.25003343,1835.2,1835.0,4.21306624]
[1746356919368,5.54929431,1835.1,1835.0,3.66265721]
[1746356919576,5.79981393,1835.1,1835.0,3.66265721]
[1746356919881,0.25051962,1835.1,1835.0,3.66265721]
[1746356920386,5.69981393,1835.1,1835.0,3.66265721]
[1746356920546,5.79981393,1835.1,1835.0,3.66265721]
[1746356921584,7.38030571,1835.1,1835.0,3.66265721]
[1746356921748,5.79981393,1835.1,1835.0,3.66265721]
[1746356922553,5.44972349,1835.0,1834.8,14.5]
[1746356922777,5.69853362,1834.9,1834.8,14.5]
[1746356923499,0.24864535,1834.9,1834.8,14.5]
[1746356924686,0.24864535,1834.9,1834.6,14.10818443]
[1746356924988,0.24864535,1834.9,1834.7,1.41081844]
[1746356925191,0.24864535,1834.9,1834.8,14.5]
[1746356926189,5.54947052,1835.1,1834.8,14.5]
[1746356926382,0.24901611,1835.0,1834.8,14.5]
[1746356928700,0.24901611,1835.0,1834.9,5.44988827]
[1746356928859,0.24901611,1835.0,1834.9,7.4448771]
[1746356929191,4.556,1835.2,1834.9,5.44988827]
[1746356929494,0.24884683,1835.1,1835.0,14.5]
[1746356932695,0.24884683,1835.1,1835.0,19.94959128]
[1746356933865,0.24884683,1835.1,1835.0,20.76909128]
[1746356934167,0.4131245,1835.3,1835.0,26.21868256]
[1746356934396,0.24872957,1835.2,1835.1,8.07109937]
[1746356935604,0.24872957,1835.2,1835.1,8.94068596]
[1746356938592,0.24872957,1835.2,1835.1,6.3188177]
[1746356938791,0.24872957,1835.2,1835.1,20.76433111]
[1746356939783,0.4131245,1835.3,1835.2,5.44899738]
[1746356939981,0.66323484,1835.3,1835.2,5.44899738]
[1746356940711,0.66323484,1835.3,1835.2,19.94899738]
[1746356940872,0.66323484,1835.3,1835.2,23.22817126]
[1746356941411,0.66323484,1835.3,1835.2,26.99617126]
[1746356941618,0.4131245,1835.3,1835.2,26.99617126]
[1746356941916,10.7041,1836.4,1836.0,5.44639696]
[1746356942214,0.25491766,1836.3,1836.2,5.44602984]
[1746356942411,0.25491766,1836.3,1836.1,0.768]
[1746356942583,0.1131,1836.3,1836.2,14.5]
[1746356942910,0.32173769,1836.3,1836.2,14.5]
[1746356943075,0.1131,1836.3,1836.2,14.5]
[1746356943282,5.76747095,1836.3,1836.2,14.5]
[1746356943625,6.8887747,1836.3,1835.7,0.768]
[1746356943773,4.551,1836.2,1835.8,5.50144325]
[1746356943974,0.2079684,1836.1,1835.9,19.94673461]
[1746356944909,0.2079684,1836.1,1835.9,14.5]
[1746356946610,0.2079684,1836.1,1835.9,19.94691609]
[1746356947538,0.2079684,1836.1,1835.9,19.94668465]
[1746356948937,0.2079684,1836.1,1835.9,25.39343709]
[1746356949140,0.2079684,1836.1,1836.0,7.9859668]
[1746356949304,6.1531,1836.6,1836.2,5.44586138]
[1746356949509,11.59795227,1836.6,1836.2,5.44586138]
[1746356949736,5.55795227,1836.6,1836.2,5.44586138]
[1746356950238,4.55,1836.7,1836.3,5.44561697]
[1746356950439,5.5607537,1836.7,1836.3,5.44552802]
[1746356950615,8.85649927,1837.1,1836.3,5.44552802]
[1746356950616,5.85668034,1837.1,1836.6,6.23349703]
[1746356950817,0.4131245,1837.1,1836.8,5.44412813]
[1746356951010,0.4131245,1837.1,1836.7,0.05444241]
[1746356951208,0.4131245,1837.1,1836.9,6.23246822]
[1746356951406,0.4131245,1837.1,1837.0,5.44365813]
[1746356953664,0.4131245,1837.1,1837.0,5.49808321]
[1746356953842,0.4131245,1837.1,1837.0,5.44365813]
[1746356955247,0.4131245,1837.1,1837.0,8.44365813]
[1746356956154,0.61346011,1837.1,1837.0,8.44365813]
[1746356956354,0.61346011,1837.1,1837.0,10.11859545]
[1746356956645,0.61346011,1837.1,1837.0,10.17301528]
[1746356956844,0.4131245,1837.1,1837.0,10.11859545]
[1746356958051,0.61722401,1837.1,1837.0,10.11859545]
[1746356958750,0.61722401,1837.1,1837.0,11.45119545]
[1746356959114,0.4131245,1837.1,1837.0,11.45119545]
[1746356961550,0.4131245,1837.1,1837.0,7.11859545]
[1746356962055,0.60201764,1837.1,1836.8,0.4135522]
[1746356962256,0.18852321,1837.0,1836.7,5.44432215]
[1746356962416,5.55630417,1837.2,1836.7,5.44432215]
[1746356962620,5.6157436,1837.1,1836.7,5.44432215]
[1746356962846,5.6157436,1837.1,1836.7,6.61148766]
[1746356963033,5.6157436,1837.1,1836.7,1.16716551]
[1746356963236,5.44367776,1837.0,1836.6,5.44461956]
[1746356963435,0.17162946,1836.9,1836.6,5.44461956]
[1746356963633,0.17162946,1836.9,1836.6,5.44482903]
[1746356963832,0.17162946,1836.9,1836.6,5.44461994]
[1746356964056,5.44354661,1837.1,1836.6,5.44484373]
[1746356964262,0.17199947,1837.0,1836.6,6.83383085]
[1746356964562,0.17199947,1837.0,1836.7,5.44454349]
[1746356964854,0.17199947,1837.0,1836.8,0.05443628]
[1746356965025,5.55633571,1837.2,1836.8,0.05443628]
[1746356965226,0.17236944,1837.1,1836.7,5.44454349]
[1746356965426,5.44338264,1837.1,1836.7,1.22783743]
[1746356965625,5.44338264,1837.1,1836.5,8.44500903]
[1746356965626,0.1131,1836.8,1836.5,5.44492748]
[1746356965855,0.15584903,1836.7,1836.5,3.0]
[1746356966198,0.15584903,1836.7,1836.4,5.44532444]
[1746356966663,0.15584903,1836.7,1836.5,5.44490069]
[1746356966838,4.696,1836.9,1836.7,5.44438625]
[1746356967251,0.15792106,1836.8,1836.7,5.44438625]
[1746356967554,4.696,1836.9,1836.7,5.44438625]
[1746356967717,0.15792106,1836.8,1836.7,5.44438625]
[1746356967919,0.15792106,1836.8,1836.7,6.53330925]
[1746356968156,4.696,1836.9,1836.8,5.44425087]
[1746356968958,4.696,1836.9,1836.7,6.53330473]
[1746356969362,4.696,1836.9,1836.7,1.088923]
[1746356969879,0.15491392,1836.8,1836.7,1.088923]
[1746356970081,4.696,1836.9,1836.7,1.088923]
[1746356970382,0.15491392,1836.8,1836.7,1.088923]
[1746356970679,4.696,1836.9,1836.7,1.088923]
[1746356970978,0.15413106,1836.8,1836.7,6.5333353]
[1746356971480,4.696,1836.9,1836.7,6.5333353]
[1746356971782,0.15413106,1836.8,1836.7,7.34907445]
[1746356972145,0.1131,1837.1,1836.8,5.44412333]
[1746356972339,10.13888784,1837.3,1836.7,7.34907323]
[1746356972340,0.1131,1837.5,1836.7,7.29466937]
[1746356972544,5.44261831,1837.4,1837.0,5.44354873]
[1746356972850,5.55548356,1837.5,1837.0,10.88698004]
[1746356973049,5.55548356,1837.5,1837.1,5.44333604]
[1746356973752,5.44251707,1837.4,1837.0,6.53218623]
[1746356974688,5.55544958,1837.5,1837.0,6.53218623]
[1746356974847,5.44247758,1837.4,1837.0,6.53218623]
[1746356975889,5.44294139,1837.3,1837.0,1.088698]
[1746356976249,5.44264565,1837.4,1837.0,1.088698]
[1746356976562,5.44277021,1837.3,1836.9,5.44379745]
[1746356977483,0.1131,1837.2,1836.8,5.44409682]
[1746356977891,0.1131,1837.2,1836.9,5.49834522]
[1746356978077,4.8081,1837.2,1836.9,5.49834522]
[1746356978584,4.8081,1837.2,1836.9,0.05443317]
[1746356978765,10.25119058,1837.2,1836.8,8.44412224]
[1746356979086,10.25119058,1837.2,1836.8,10.01799478]
[1746356979294,10.25119058,1837.2,1836.8,10.07242889]
[1746356979880,4.695,1837.2,1837.0,5.44347848]
[1746356980085,4.695,1837.2,1837.0,5.49790885]
[1746356980268,4.695,1837.2,1837.1,0.54979088]
[1746356981786,4.695,1837.2,1837.1,5.9931527]
[1746356982492,0.1131,1837.4,1837.1,5.9931527]
[1746356982797,4.7790004,1837.5,1837.2,5.44305648]
[1746356983172,4.7790004,1837.5,1837.2,5.44296273]
[1746356983556,4.7790004,1837.5,1837.3,14.5]
[1746356983757,10.22129367,1837.5,1837.3,14.5]
[1746356985010,5.44247305,1837.4,1837.3,14.5]
[1746356985215,10.22137241,1837.5,1837.3,14.5]
[1746356985598,4.7790004,1837.5,1837.3,14.5]
[1746356986210,4.7790004,1837.5,1837.3,15.33625941]
[1746356986406,0.14170712,1837.4,1837.3,15.33625941]
[1746356987883,0.14170712,1837.4,1837.3,14.5]
[1746356991244,0.14170712,1837.4,1837.1,0.54979088]
[1746356991515,0.1131,1837.3,1837.1,0.54979088]
[1746356991812,0.1131,1837.3,1837.2,14.5]
[1746356992315,0.1131,1837.3,1837.1,0.54979088]
[1746356992625,0.1131,1837.3,1837.1,15.04979088]
[1746356996626,0.1131,1837.3,1837.2,1.50497909]
[1746356997126,5.55586928,1837.3,1837.1,15.04979088]
[1746356997327,5.44326053,1837.2,1837.0,3.0]
[1746356997534,10.9991813,1837.3,1836.9,3.40672956]
[1746356997829,5.44309876,1837.2,1837.0,14.5]
[1746357000537,5.44336182,1837.1,1837.0,14.5]
[1746357000841,5.44318464,1837.2,1837.0,14.5]
[1746357001525,0.12967379,1837.1,1837.0,14.5]
[1746357001827,5.44318464,1837.2,1837.0,14.5]
[1746357002128,0.12960264,1837.1,1837.0,14.5]
[1746357002521,5.44318464,1837.2,1837.0,1.45]
[1746357002717,0.12934304,1837.1,1836.8,11.45804757]
[1746357002937,5.44318464,1837.2,1836.9,14.5]
[1746357003333,0.12934304,1837.1,1836.9,14.5]
[1746357003537,5.44318464,1837.2,1836.9,14.5]
[1746357003781,0.12897312,1837.0,1836.9,14.5]
[1746357003935,5.44318464,1837.2,1836.9,17.09580051]
[1746357004239,0.12897312,1837.0,1836.9,22.53975499]
[1746357004396,5.55604773,1837.3,1836.9,22.53975499]
[1746357004598,0.12897312,1837.0,1836.9,22.53975499]
[1746357005223,5.55604773,1837.3,1836.9,22.53975499]
[1746357005423,0.12897312,1837.0,1836.9,22.53975499]
[1746357006215,10.24704773,1837.3,1836.9,22.53975499]
[1746357006615,0.12971293,1837.2,1836.9,22.53975499]
[1746357006918,0.12971293,1837.2,1836.9,8.03975499]
[1746357007114,0.12971293,1837.2,1836.9,8.09418801]
[1746357007317,0.12971293,1837.2,1836.9,8.09396942]
[1746357008137,0.12971293,1837.2,1837.0,14.5]
[1746357010059,0.12971293,1837.2,1837.0,19.94354714]
[1746357010251,0.12971293,1837.2,1837.0,22.1974819]
[1746357010538,0.12971293,1837.2,1837.1,0.05442858]
[1746357010725,0.12971293,1837.2,1837.0,22.1974819]
[1746357012878,0.24281293,1837.2,1837.0,14.5]
[1746357013031,0.12971293,1837.2,1837.0,14.5]
[1746357013775,0.12971293,1837.2,1837.0,18.16252041]
[1746357015447,5.44336182,1837.1,1837.0,18.16252041]
[1746357015765,5.68628261,1837.1,1837.0,3.66252041]
[1746357015965,6.79924602,1837.1,1837.0,3.66252041]
[1746357020746,1.3558842,1837.1,1836.6,18.16252041]
[1746357020961,5.44419576,1836.9,1836.6,18.16252041]